Cogmind - Beta 14 @@@ ROGUE MODE // 2025.01.05 @ 17:09:04 Player: FenRhew Result: Destroyed by S-10 Pest with Light Assault Rifle Performance ------------- Evolutions (1) 500 Regions Visited (3) 600 Robots Destroyed (54) 270 Value Destroyed (1246) 1246 Prototype IDs (2) 40 Alien Tech Used (0) 0 Bonus (31) 31 TOTAL SCORE: 2687 Bonus ------- High Alert Combat Kills 31 Cogmind --------- Core Integrity 0/400 Matter 300/300 Energy 125/125 System Corruption 5% Temperature Cool (0) Movement Walking (190) Ox1 Location -9/Mines Parts ------- > --- POWER (1) -------- Light Ion Engine > --- PROPULSION (3) --- Aluminum Leg Flexi-carbon Leg > --- UTILITY (3) ------ High-capacity Storage Unit Improved Terrain Scanner Improved Light Armor Plating > --- WEAPON (2) ------- Katana Katana > --- INVENTORY (20) --- Light Nuclear Core Aluminum Leg Aluminum Leg Structural Scanner Improved Light Armor Plating Mini Grenade Launcher Datajack Katana Katana Scythe Scythe Signal Generator Peak State ------------ > --- POWER ------------ Light Deuterium Engine > --- PROPULSION ------- Aluminum Leg Aluminum Leg VTOL Module > --- UTILITY ---------- High-capacity Storage Unit Improved Terrain Scanner Improved Light Armor Plating > --- WEAPON ----------- Katana Scythe > --- INVENTORY -------- Light Deuterium Engine Light Nuclear Core Light Nuclear Core VTOL Module VTOL Module VTOL Module VTOL Module Improved Heat Sink Weight Redist. System Improved Light Armor Plating Improved Light Armor Plating Hacking Suite Autogun Grenade Launcher Datajack Katana Katana Katana Scythe Scythe [Rating: 25] Favorites ----------- Power Light Deuterium Engine Engine Light Deuterium Engine Power Core Light Nuclear Core Propulsion Aluminum Leg Treads Light Treads Leg Aluminum Leg Wheel Wheel Flight Unit VTOL Module Utility High-capacity Storage Unit Device Improved Terrain Scanner Storage High-capacity Storage Unit Hackware Hacking Suite Protection Improved Light Armor Plating Weapon Katana Energy Gun EM Pulse Gun Ballistic Gun Light Assault Rifle Launcher Grenade Launcher Slashing Weapon Katana Build | -11 -10 -9 -9 ------- Run | Yrd Mat Mat Min Slots Evolved 2 | . . 2 . Power . | . . . . Propulsion 1 | . . 1 . Utility 1 | . . 1 . Weapon . | . . . . Parts Attached 64 | 7 15 28 14 Power 7 | 1 1 2 3 Engine 6 | 1 1 2 2 Core 1 | . . . 1 Reactor . | . . . . Propulsion 24 | 2 5 14 3 Treads 6 | . 1 5 . Leg 10 | . . 7 3 Wheel 7 | 2 4 1 . Hover . | . . . . Flight 1 | . . 1 . Utility 18 | 1 6 6 5 Device 6 | . 2 2 2 Storage 6 | 1 4 . 1 Processor . | . . . . Hackware 1 | . . . 1 Protection 5 | . . 4 1 Artifact . | . . . . Weapon 15 | 3 3 6 3 Energy Gun 3 | . 1 2 . Energy Cannon . | . . . . Ballistic Gun 6 | 3 2 1 . Ballistic Cannon . | . . . . Launcher 2 | . . 1 1 Special Weapon . | . . . . Impact Weapon . | . . . . Slashing Weapon 4 | . . 2 2 Piercing Weapon . | . . . . Special Melee Weapon . | . . . . Unidentified Prototypes . | . . . . Corrupted Parts 1 | . . 1 . System Corruption 1 | . . 1 . Parts Lost 23 | . 5 10 8 Power 4 | . 1 . 3 Propulsion 8 | . 2 4 2 Utility 5 | . 1 2 2 Weapon 6 | . 1 4 1 Highest Loss Streak 5 | . 4 3 5 To Critical Strikes . | . . . . Average Slot Usage (%) 97 | . 98 96 97 Engine 11 | . 13 11 10 Treads 9 | . . 17 . Leg 14 | . . 10 32 Wheel 6 | . 27 1 . Device 8 | . 13 5 9 Storage 11 | . 14 11 9 Protection 11 | . . 15 10 Energy Gun 4 | . 3 7 . Ballistic Gun 7 | . 24 5 . Slashing Weapon 10 | . . 7 21 Peak Build Rating 25 | 6 10 25 25 Average Rating 16 | 4 8 17 22 On Entrance 9 | . 6 10 23 Naked Turns . | . . . . Heaviest Build 59 | 13 50 59 54 Greatest Support 60 | 20 26 60 40 Greatest Overweight (x) 2 | . 2 2 1 Average Overweight (x) . | . 1 . . Largest Inventory Capacity 20 | 8 20 20 20 Average Capacity 19 | 7 19 20 17 Most Carried 20 | 6 20 20 19 Average Carried 15 | 2 14 18 11 Final Capacity 20 | 8 20 20 20 Final Carried 20 | 6 20 19 12 Class Distribution -------------------- 89% | Mutant 10% | Scavenger-Mutant Dominant Class ---------------- Mutant | -10/Materials Mutant | -9/Materials Mutant | -9/Mines Resources | -11 -10 -9 -9 ----------- Run | Yrd Mat Mat Min Matter Collected 1220 | 226 291 548 155 Remotely . | . . . . Salvage Created 1870 | . 414 1248 208 Parts 120 | . 31 80 9 Haulers Intercepted 2 | . 1 1 . Recyclers Shooed . | . . . . Parts Field Recycled . | . . . . Retrieved Matter . | . . . . Parts Self-Destructed . | . . . . Prevented . | . . . . Kills | -11 -10 -9 -9 ------- Run | Yrd Mat Mat Min Combat Hostiles Destroyed 52 | . 10 28 14 Melee 25 | . . 11 14 Guns 23 | . 10 13 . AOE 3 | . . 3 . Classes Destroyed 8 | . 5 2 1 Hauler 2 | . 1 1 . Recycler 2 | . . 2 . Operator 3 | . 1 2 . Watcher 3 | . 1 2 . Swarmer 20 | . 3 11 6 Grunt 18 | . 7 11 . Sentry 6 | . . 6 . Assembled 8 | . . . 8 Best Kill Streak 7 | . 2 7 2 Combat Bots Only 7 | . 2 7 2 Max Kills in Single Turn 3 | . 1 3 1 Gunslinging . | . . . . Exploded 3 | . . 3 . Melee 1 | . . 1 1 Uniques/NPCs Destroyed . | . . . . Combat | -11 -10 -9 -9 -------- Run | Yrd Mat Mat Min Hostile Shots Fired 342 | . 73 193 76 Missed 93 | . 23 53 17 Damage Taken 3115 | . 591 1674 850 Core 475 | . 72 201 202 Absorbed by Shields . | . . . . Redirected to Shielding 52 | . . 52 . Core Remaining (%) 85 | 100 71 . . Volleys Fired 151 | . 62 89 . Largest 2 | . 2 2 . Hottest 85 | . 85 85 . Shots Fired 253 | . 123 130 . Gun 251 | . 123 128 . Cannon . | . . . . Launcher 2 | . . 2 . Special . | . . . . Kinetic 184 | . 119 65 . Thermal 18 | . 4 14 . Explosive 2 | . . 2 . Electromagnetic 49 | . . 49 . Robot Hit Streak 11 | . 10 11 . Robot Miss Streak 3 | . 3 2 . Penetration Max . | . . . . Secondary Targets 2 | . 2 . . Max Gunslinging Chain 1 | . 1 . . Shots Hit Robots 209 | . 69 119 21 Core Hits 88 | . 27 48 13 Critical Kills . | . . . . Critical Parts Destroyed 1 | . 1 . . Critical Strikes 4 | . 1 3 . Destroy 1 | . 1 . . Sever 3 | . . 3 . Melee Attacks 70 | . . 37 33 Impact . | . . . . Slashing 70 | . . 37 33 Piercing . | . . . . Sneak Attacks 7 | . . 6 1 Combat Hostiles 1 | . . . 1 Follow-up Attacks 10 | . . 7 3 Damage Inflicted 4172 | . 784 2595 793 Guns 1995 | . 777 1218 . Cannons . | . . . . Explosions 245 | . . 245 . Melee 1925 | . . 1132 793 Ramming 7 | . 7 . . Kinetic 1334 | . 745 589 . Thermal 279 | . 32 247 . Explosive 182 | . . 182 . Electromagnetic 445 | . . 445 . Impact . | . . . . Slashing 1925 | . . 1132 793 Piercing . | . . . . Highest Corruption 5 | . . 1 5 Average Corruption 2 | . . 1 4 Corruption Purged . | . . . . Corruption Blocked . | . . . . Effects 31 | . . 8 23 Message Errors 8 | . . . 8 Matter Fused 4 | . . . 4 Heat Flow Errors 7 | . . 3 4 Energy Discharges 4 | . . 1 3 Parts Rejected 1 | . . . 1 Parts Fused 2 | . . 1 1 Data Loss (minor) 4 | . . 2 2 Data Loss (major) 1 | . . 1 . Overload Shots . | . . . . Overflow Damage 50 | . . 15 35 Projectiles . | . . . . Explosions 3 | . . 3 . Melee 47 | . . 12 35 Knockbacks . | . . . . Impact . | . . . . Kinetic . | . . . . Secondary . | . . . . Self-Inflicted Damage 21 | . 3 18 . Shots 1 | . . 1 . Rammed 1 | . 1 . . Targets Rammed 1 | . 1 . . Kicked . | . . . . Crushed . | . . . . Highest Temperature 279 | . 30 279 261 Average Temperature 75 | . 11 74 112 Received Heat Transfer 824 | . 225 519 80 Siege Activations . | . . . . Robots Corrupted 1 | . . 1 . Combat Hostiles 1 | . . 1 . Parts Fried 1 | . . 1 . Impact Corruptions . | . . . . Robots Melted . | . . . . Combat Hostiles . | . . . . Parts Melted 1 | . . 1 . Heat Transferred 668 | . 74 594 . Parts Sabotaged . | . . . . Parts Stolen . | . . . . Parts Stripped . | . . . . Power Chain Reactions 2 | . . 2 . Alert | -11 -10 -9 -9 ------- Run | Yrd Mat Mat Min Peak Influence 544 | . 233 544 336 Initial 211 | . . 98 211 Average 163 | . 95 203 151 Maximum Alert Level 2 | . 1 2 1 Low Security (%) 67 | 100 89 58 65 Level 1 29 | . 10 34 34 Level 2 3 | . . 6 . Level 3 . | . . . . Level 4 . | . . . . Level 5 . | . . . . High Security . | . . . . Max Security . | . . . . Squads Dispatched 4 | . 3 1 . Investigation 2 | . 2 . . Extermination . | . . . . Reinforcement 2 | . 1 1 . Assault . | . . . . Garrison . | . . . . Intercept . | . . . . Searches Triggered . | . . . . Construction Impeded . | . . . . Haulers Reinforced . | . . . . Active Scanning Responses . | . . . . Cargo Convoy Interrupts . | . . . . Stealth | -11 -10 -9 -9 --------- Run | Yrd Mat Mat Min Distress Signals 6 | . . 6 . Communications Jammed . | . . . . Distress Signals . | . . . . Times Spotted 104 | . 17 50 37 Peak Tracking Total 12 | . 3 6 12 Tactical Retreats 10 | . 2 4 4 Traps | -11 -10 -9 -9 ------- Run | Yrd Mat Mat Min Traps Triggered 3 | . 3 . . Indirectly . | . . . . Trap Hack Attempts . | . . . . Triggered . | . . . . Disarmed . | . . . . Reprogrammed . | . . . . Reused . | . . . . Traps Extracted . | . . . . Installed . | . . . . Triggered . | . . . . Machines | -11 -10 -9 -9 ---------- Run | Yrd Mat Mat Min Machines Disabled . | . . . . Max in Single Turn . | . . . . Machines Repaired . | . . . . Machines Dismantled . | . . . . Machines Sabotaged . | . . . . Overloaded Fab Kills . | . . . . Hacking | -11 -10 -9 -9 --------- Run | Yrd Mat Mat Min Machines Accessed 11 | . 3 8 . Terminals 11 | . 3 8 . Fabricators . | . . . . Repair Stations . | . . . . Recycling Units . | . . . . Scanalyzers . | . . . . Garrison Access . | . . . . Total Hacks 35 | . 8 27 . Successful 16 | . 4 12 . Failed 19 | . 4 15 . Catastrophic 7 | . 2 5 . Database Lockouts . | . . . . Manual 24 | . 10 14 . Terminals 35 | . 8 27 . Fabricators . | . . . . Repair Stations . | . . . . Recycling Units . | . . . . Scanalyzers . | . . . . Garrison Access . | . . . . Terminal Hacks 14 | . 4 10 . Record 2 | . . 2 . Robot Analysis 1 | . 1 . . Prototype ID Bank 1 | . . 1 . Branch Access Points 2 | . 1 1 . Emergency Access Points 1 | . 1 . . Terminal Index 1 | . . 1 . Alert Level 3 | . 1 2 . Hauler Manifests 1 | . . 1 . Registered Components 1 | . . 1 . Zone Layout 1 | . . 1 . Fabricator Hacks . | . . . . Repair Station Hacks . | . . . . Recycling Unit Hacks . | . . . . Scanalyzer . | . . . . Garrison Access Hacks . | . . . . Unauthorized Hacks 2 | . . 2 . Terminals 2 | . . 2 . Operators 2 | . . 2 . Fabricators . | . . . . Repair Stations . | . . . . Recycling Units . | . . . . Scanalyzers . | . . . . Garrison Access . | . . . . Data Cores Recovered 2 | . . 2 . Used 1 | . . 1 . Hacking Detections 11 | . 4 7 . Full Trace Events 3 | . 2 1 . Feedback Events . | . . . . Feedback Blocked . | . . . . Robot Schematics Acquired . | . . . . Robots Built . | . . . . Authchips . | . . . . Time . | . . . . Total Robot Build Rating . | . . . . Part Schematics Acquired . | . . . . Parts Built . | . . . . Authchips . | . . . . Time . | . . . . Total Part Build Rating . | . . . . Parts Repaired . | . . . . Time . | . . . . Parts Recycled . | . . . . Recycled Matter . | . . . . Retrieved Matter . | . . . . Retrieved Components . | . . . . Parts Scanalyzed . | . . . . Part Schematics Acquired . | . . . . Parts Damaged . | . . . . Bothacking | -11 -10 -9 -9 ------------ Run | Yrd Mat Mat Min Used RIF Installer . | . . . . Robots Hacked . | . . . . Non-combat . | . . . . Combat . | . . . . Robot Hacks Applied . | . . . . Relay Couplers Released . | . . . . Fabnet Peak Effective % . | . . . . Robots Rewired . | . . . . Allies Hacked . | . . . . Hacks Repelled . | . . . . Allies | -11 -10 -9 -9 -------- Run | Yrd Mat Mat Min Total Allies . | . . . . Largest Group . | . . . . Highest-Rated Group . | . . . . Highest-Rated Ally . | . . . . Total Orders . | . . . . Ally Attacks . | . . . . Total Damage . | . . . . Kills . | . . . . Allies Corrupted . | . . . . Allies Melted . | . . . . Intel | -11 -10 -9 -9 ------- Run | Yrd Mat Mat Min Robot Analysis Total 1 | . 1 . . Derelict Logs Recovered 2 | . . . 2 Drone Launches . | . . . . Drone Recoveries . | . . . . Exploration | -11 -10 -9 -9 ------------- Run | Yrd Mat Mat Min Turns Passed 4003 | 63 795 1988 1157 Spaces Moved 1957 | 60 513 846 538 Core 5 | 5 . . . Treads 532 | . . 532 . Legs 785 | . . 247 538 Wheels 635 | 55 513 67 . Hover . | . . . . Flight . | . . . . Fastest Speed 50 | 50 80 101 120 Average Speed 155 | 77 106 174 180 Slowest Speed 260 | 80 110 260 190 Overloaded Moves . | . . . . Propulsion Burnouts . | . . . . Robots Hopped . | . . . . Cave-ins Triggered . | . . . . Exploration Rate (%) 60 | 4 84 70 85 Regions Visited 3 Branch Regions 1 Pre-discovered Areas 1 | . . . 1 Known Exits Taken 1 | . . 1 . Unknown Exits Taken 2 | 1 1 . . Scrap Searched . | . . . . Spaces Dug . | . . . . Terrain Destroyed 15 | . . 15 . Melee . | . . . . Projectile . | . . . . AOE 15 | . . 15 . Terrain Rammed . | . . . . Walls Destroyed . | . . . . Machines Disabled . | . . . . Actions | -11 -10 -9 -9 --------- Run | Yrd Mat Mat Min Total 2584 | 72 643 1188 681 Wait 262 | 1 31 145 85 Move 1954 | 59 512 845 538 Hop . | . . . . Pick Up 60 | 5 18 24 13 Fast Attach 15 | 6 2 5 2 Attach 27 | . 7 12 8 Detach 3 | . 1 2 . Swap 22 | 1 6 11 4 Drop 32 | . 3 25 4 Fire 151 | . 62 89 . Melee 57 | . . 30 27 Ram 1 | . 1 . . Kick . | . . . . Crush . | . . . . Escape Stasis . | . . . . Rewire . | . . . . Trap . | . . . . Miscellaneous . | . . . . Route ------- -11/Scrapyard -10/Materials (discovered 4 exits: *Mat x2 / *Min x2) -9/Materials (discovered 3 exits: [*Mat x2] / *Min) -9/Mines (discovered 2 exits: [*Mat x2]) History --------- Turn | Location | Event 5 | -11/Scrapyard | Discovered new exit (range 15) 64 | -11/Scrapyard | Entered Materials 190 | -10/Materials | Discovered new exit (range 15) 250 | -10/Materials | Discovered new exit (range 11) 311 | -10/Materials | Build established: Mutant 475 | -10/Materials | Discovered new exit (range 12) 687 | -10/Materials | Lost 4 parts (1p2n1u) 701 | -10/Materials | Discovered new exit (range 7) 714 | -10/Materials | Identified exit to Mines 859 | -10/Materials | Entered another Materials area 859 | -9/Materials | Evolved 2 slots: Propulsion x1, Utility x1 1557 | -9/Materials | Discovered new exit (range 16) 1782 | -9/Materials | Discovered new exit (range 5) 2175 | -9/Materials | Lost 3 parts (1n2u) 2196 | -9/Materials | Discovered new exit (range 9) 2728 | -9/Materials | Core integrity fell below 50% 2763 | -9/Materials | Destroyed 7 combat bots 2796 | -9/Materials | Identified exit to Mines 2847 | -9/Materials | Entered Mines 2925 | -9/Mines | Assembled infested the area 2930 | -9/Mines | Assisted by a Guerilla fighting off Assembled 2933 | -9/Mines | Discovered new exit (range 13) 2958 | -9/Mines | Core integrity fell below 20% 3015 | -9/Mines | Lost 5 parts (2p2u1w) 3064 | -9/Mines | Build established: Scavenger-Mutant 3200 | -9/Mines | Met a Derelict testing a Signal Generator 3229 | -9/Mines | Found Signal Generator 3460 | -9/Mines | Build established: Mutant 3960 | -9/Mines | Discovered new exit (range 16) 4004 | -9/Mines | Destroyed by S-10 Pest with Light Assault Rifle Last Messages --------------- 03838_ K-01 Serf collects debris. 03870_ Discarded Imp. Terrain Scanner. 03873_ K-01 Serf collects debris. 03879_ Acquired 10 matter. 03880_ K-01 Serf collects debris. 03884_ 8UQHYPAXT PB6YHU:3S|U#/I#BAZKTS4>2 03887_ K-01 Serf collects debris. 03895_ Acquired Structural Scanner. 03897_ K-01 Serf collects debris. 03924_ System corrupted: Matter fused (-7). 03925_ K-01 Serf collects debris. 03926_ Acquired 7 matter. 03960_ EXIT=FOUND 03970_ System corrupted: Matter fused (-8). 03985_ Acquired 8 matter. 03998_ Destroyed Flight Unit. 03998_ Katana follow-up attack on S-10 Pest. 03998_ Destroyed Flight Unit. 03999_ System corrupted: Aluminum Leg rejected. 04001_ S-10 Pest destroyed. Map ----- +----------------------------------------------------+ | | | | | | | | | | | | | ??????????????????????????????????????? | | ??????????????????????????????????????? | | ??????????????????????????????????????? | | ??????????????????????????????????????? | | ????????? ????????????????????????????? | | ??????????????????????????????????????? | | ????# "????????#??????????????????????? | | ????# ""????????????#?????????????????? | | ????? ??????????????????????????????? | | ?????# ?????#????????????????????????? | | ?????# ??????????????????????????????? | | ?????#$ ##??????#?????????????????????? | | ?????# ##??????????????????????????? | | ???#?# #??????????????????????????? | | ??#???# ##?????????????????????????? | | ?#?????# < ##????????????????????????? | | ???#????# #???#????????????????????? | | ????????# #????????????????????????? | | ?#?????## ss##### #???#??????????????? | | ??????## s@ #?#?????????#??????? | | ?????## % ########??????????????????? | | ????## %% #?#??#???????????#?????#??? | | ??### #?????????#?#????#???????#? | | ???# ##???#?#?#???????##??#????? | | ???# ####??????????#?#?##?????????? | | ?#?# # ##???????????????????????????? | | ???#### ##?##???????#?##??#?????????? | | ?????## #???##???????????#??#?????#? | | ??????# #??#???##????#######?#?##??? | | ????### ##?##??????????# #?????#? | | ??#?## %##?????#######?# | #?????##? | | ??### ###??## #####[ %=#?####### | | ???# #?#?# / %%% ! ##### [ | | ???# ##### %### # # | | ???## % % %!!!#?# = | | ??#?## ####%### ##?#=%[ ## #% | | ????## ##??# #?######??# * ## #[ | | ????# ##??# ##?#??????# #### # | | ????# ##### #??#?##??# ## # ==# | | ????## ## ###??###?# #### =|!# | | ?????####### ##%####?????# #?###!%!# | | ???????????# #?????#??########### # | | ?????###??#####%##?#???####?#?##***]%%% | | ????## ##?????# #????### ##???# ###%%! | +----------------------------------------------------+ Best States ------------- Heat Dissipation 38 Energy Generation 14 Energy Capacity 265 Matter Stores 300 Matter Capacity 300 Sight Range 16 Robot Scan Range 14 Terrain Scan Range 16 Terrain Scan Density 10 Armor Coverage 150 Weapon Shielding 33 Evasion (%) 50 Recoil Reduction 3 Offensive Hacking 10 Item Schematics ----------------- None Robot Schematics ------------------ None Fabricated ------------ Nothing Alien Tech Used ----------------- None Achievements -------------- True Hacker Challenges ------------ None Game ------ Seed TargetingDisassembledThrower Manual? 0 Play Time 00:44:54 Cumulative 16.3 hours Start 2025.01.05 @ 15:35:17 End 2025.01.05 @ 17:09:04 Sessions 1 Manual Loads 0 Difficulty Rogue Special Mode None Game No. 10 Rogue 10 Adventurer 0 Explorer 0 Win Type - Total 0 Types 0/0/0/0/0/0/0/0/0 Lore% 14 Gallery% 21 Achievement% 21 Wizard Run 0 Options --------- Layout 1 ASCII 0 Keyboard 0 Movement Numpad Keybinds 0 Fullscreen 1 Font 24/Smallcaps Map View 50x35 Zoom Use 0% Tactical HUD 1 Map Filters NONE Filters NONE Steam 1 RUN: 50b7bcd0-9bb0-4eac-893c-277b23f810f4